[Event "25th Nepal Championship 2025"]
[Site "Hetauda"]
[Date "2025.01.29"]
[Round "6.2"]
[White "Maharjan, Prem Krishna"]
[Black "Thapa, Binay"]
[Result "1-0"]
[Annotator "NA RC"]
[ECO "B18"]
[WhiteElo "1882"]
[BlackElo "1688"]
[PlyCount "109"]
[EventDate "2025.01.24"]
[EventType "tourn"]
[EventCountry "NEP"]
[SourceTitle "playchess.com"]
[Source "ChessBase"]
[SourceQuality "1"]
[TimeControl "5400+30"]

{[%evp 8,109,24,20,22,-8,89,32767,32767,32767,32767,32767,32767,32767,32767,32767,32767,32767,32767,32767,32767,32767,32767,32767,-26,-97,-88,32767,-89,-97,-56,32767,-53,-87,-89,32767,32767,-106,-113,-127,-108,-124,-12,-74,13,-129,-129,-135,-138,-141,-135,-137,-134,-191,-200,-150,-164,-147,-138,32767,32767,32767,32767,32767,32767,32767,14,0,17,32767,0,32767,32767,0,32767,0,0,32767,32767,0,0,0,0,0,0,0,0,0,29969,29978,12802,29978,29967,29980,29979,29981,29981,29982,29982,29983,29983,29984,29984,29986]} 1. e4 {[%emt 0:00:08]} c6 {[%emt 0:00:06]} 2. d4 {[%emt 0:00:11]} d5 {[%emt 0:00:05]} 3. Nc3 {[%emt 0:00:09]} dxe4 {[%emt 0:00:12]} 4. Nxe4 {[%emt 0:00:11]} Bf5 {[%emt 0:00:10]} 5. Ng3 {[%emt 0:00:36]} Bg6 {[%emt 0:01:46]} 6. f4 {[%emt 0:01:01]} h6 {[%emt 0:00:24] B18: Classical Caro-Kann: 4...Bf5 sidelines.} (6... e6 $11) 7. Nf3 {[%emt 0:00:29]} Nf6 {[%emt 0:00:12]} 8. Ne5 {[%emt 0:00:37]} Bh7 {[%emt 0:00:15]} 9. c3 {[%emt 0:01:02]} e6 {[%emt 0:00:44]} 10. Qb3 {[%emt 0:00:53]} Qb6 {[%emt 0:00:22]} 11. Bc4 {[%emt 0:03:06]} Qxb3 {[%emt 0:00:30]} 12. Bxb3 {[%emt 0:00:21]} Nbd7 {[%emt 0:00:35]} 13. f5 {[%emt 0:01:43]} Nxe5 {[%emt 0:00:53]} 14. dxe5 {[%emt 0:00:11]} Nd5 {[%emt 0:00:20]} 15. fxe6 {[%emt 0:00:36]} fxe6 {[%emt 0:00:32]} 16. O-O {[%emt 0:04:06]} (16. Bxd5 $15 exd5 17. Be3) 16... Bc5+ {[%emt 0:00:58]} 17. Kh1 {[%emt 0:00:12]} Rf8 {[%emt 0:01:22]} 18. Bd2 {[%emt 0:00:26]} Bg6 {[%emt 0:02:06]} (18... Rxf1+ $17 19. Rxf1 Ke7) 19. Rxf8+ {[%emt 0:01:23]} Kxf8 {[%emt 0:00:16]} 20. Rf1+ {[%emt 0:01:17]} Ke7 {[%emt 0:00:48]} 21. Bd1 {[%emt 0:00:25]} Ne3 {[%emt 0:00:44]} 22. Bxe3 {[%emt 0:02:05]} Bxe3 {[%emt 0:00:40]} 23. Bh5 {[%emt 0:00:21]} Bxh5 {[%emt 0:01:11]} 24. Nxh5 {[%emt 0:00:32] [#]} g6 {[%emt 0:01:10]} ({Black should play} 24... Rd8 $1 $17 25. g3 (25. Nxg7 $2 {is the wrong capture.} Rd2 $19) 25... Rd2) 25. Nf6 {[%emt 0:01:13]} (25. Nf4 $1 $11 Rg8 26. Rf3) 25... Rf8 {[%emt 0:01:06]} (25... Rd8 $15) 26. g3 {[%emt 0:00:23] [#]} (26. Rd1 $1 $11 {keeps the balance.} Rd8 27. Rxd8 Kxd8 28. g3) 26... Bg5 $1 {[%emt 0:00:27]} 27. Kg2 $17 {[%emt 0:02:43]} Bxf6 {[%emt 0:00:11]} 28. exf6+ {[%emt 0:00:27]} Rxf6 {[%emt 0:00:09]} 29. Re1 {[%emt 0:00:19]} Rf5 {[%emt 0:00:44]} 30. g4 {[%emt 0:00:42]} (30. c4 $17) 30... Rd5 {[%emt 0:00:28]} 31. Re2 {[%emt 0:00:09]} b5 {[%emt 0:04:00]} 32. Kf3 {[%emt 0:01:31]} e5 {[%emt 0:01:58]} 33. Ke4 {[%emt 0:01:56]} Ke6 {[%emt 0:01:09]} 34. h4 {[%emt 0:03:09]} a5 {[%emt 0:01:12]} 35. g5 {[%emt 0:00:17]} h5 {[%emt 0:00:14]} 36. Rf2 {[%emt 0:00:12]} Rd6 {[%emt 0:03:29]} (36... Rd1 $5 37. Rf6+ $8 Kd7 $18) 37. Rf6+ {[%emt 0:05:57]} Ke7 $1 {[%emt 0:00:08]} ({Much worse is} 37... Kd7 38. Rf7+ (38. Kxe5 Rd5+ 39. Ke4 Rd2 $11) 38... Ke6 39. Rg7 $14) 38. Kxe5 {[%emt 0:01:01]} Rd5+ {[%emt 0:00:13]} 39. Ke4 {[%emt 0:00:19]} Rd6 {[%emt 0:00:13]} 40. Rxd6 {[%emt 0:03:54]} Kxd6 {[%emt 0:00:48]} 41. b4 {[%emt 0:02:35]} axb4 {[%emt 0:00:51]} 42. cxb4 {[%emt 0:00:13]} Ke6 {[%emt 0:00:42]} 43. a3 {[%emt 0:01:16]} Kd6 {[%emt 0:00:09]} 44. Kd4 {[%emt 0:00:47]} Ke6 {[%emt 0:00:51]} 45. Kc5 {[%emt 0:02:22]} Kd7 {[%emt 0:00:10]} 46. Kb6 {[%emt 0:00:28]} Kd6 {[%emt 0:00:10]} 47. Kb7 {[%emt 0:00:21]} c5 $2 {[%emt 0:00:22] [#]} (47... Kd7 $11 48. Kb8 Kd8) 48. bxc5+ $1 {[%emt 0:00:11]} Kxc5 {[%emt 0:00:20]} 49. Kc7 {[%emt 0:00:03]} Kd5 {[%emt 0:05:30]} 50. Kb6 {[%emt 0:00:22]} Kc4 {[%emt 0:00:31]} 51. Kc6 {[%emt 0:00:11]} Kb3 {[%emt 0:00:36]} 52. Kxb5 {[%emt 0:00:13]} Kxa3 {[%emt 0:00:02]} 53. Kc4 {[%emt 0:00:13]} Kb2 {[%emt 0:00:17]} 54. Kd4 {[%emt 0:00:12]} Kc2 {[%emt 0:00:12]} 55. Ke5 {[%emt 0:00:06]} 1-0

[Event "25th Nepal Championship 2025"]
[Site "Hetauda"]
[Date "2025.01.29"]
[Round "6.3"]
[White "Maharjan, Suroj"]
[Black "Phuyal, Aashish"]
[Result "0-1"]
[Annotator "TA"]
[ECO "C95"]
[WhiteElo "1952"]
[BlackElo "1981"]
[PlyCount "116"]
[EventDate "2025.01.24"]
[EventType "tourn"]
[EventCountry "NEP"]
[SourceTitle "playchess.com"]
[Source "ChessBase"]
[SourceQuality "1"]
[TimeControl "5400+30"]

{[%evp 29,116,5,16,12,16,-17,-28,-52,-51,-52,-51,-45,-53,-55,-54,-57,-53,-76,-71,-68,-20,-24,0,0,0,-11,0,-51,-43,-72,-75,-74,-41,-127,-131,-137,-130,-164,-160,-171,-183,-216,-214,-271,-278,-265,-237,-236,-243,-237,0,-331,-315,-326,-285,-327,-316,-319,-324,-325,-322,-672,-671,-735,-571,-864,-768,-866,-793,-860,-839,-779,-752,-2245,-2181,-2190,-2118,-1948,-1718,-29984,-29986,-29986,-29987,-29989,-29989,-29988,-29984,-29984,-29984]} 1. e4 {[%emt 0:00:02]} e5 {[%emt 0:00:11]} 2. Nf3 {[%emt 0:00:06]} Nc6 {[%emt 0:00:05]} 3. Bb5 {[%emt 0:00:07]} a6 {[%emt 0:01:37]} 4. Ba4 {[%emt 0:00:23]} Nf6 {[%emt 0:00:27]} 5. O-O {[%emt 0:00:30]} Be7 {[%emt 0:00:18]} 6. Re1 {[%emt 0:00:34]} b5 {[%emt 0:01:04]} 7. Bb3 {[%emt 0:00:09]} O-O {[%emt 0:00:08]} 8. c3 {[%emt 0:01:26]} d6 {[%emt 0:00:39]} 9. h3 {[%emt 0:00:35]} Nb8 {[%emt 0:00:26]} 10. d4 {[%emt 0:00:25]} Nbd7 {[%emt 0:00:08]} 11. Nbd2 {[%emt 0:04:43]} Bb7 {[%emt 0:00:50]} 12. Bc2 {[%emt 0:00:11]} Re8 {[%emt 0:00:11]} 13. Nf1 {[%emt 0:00:04]} Bf8 {[%emt 0:00:08]} 14. Ng3 {[%emt 0:00:32]} g6 {[%emt 0:00:05]} 15. dxe5 {[%emt 0:07:13]} dxe5 {[%emt 0:00:29]} 16. Qe2 {[%emt 0:00:49] C95: Closed Ruy Lopez: Breyer Variation with 10 d4.} c5 {[%emt 0:02:12]} 17. Be3 {[%emt 0:00:57]} c4 {[%emt 0:03:58]} 18. Rad1 $146 {[%emt 0:00:23] Black has an edge.} (18. b4 a5 19. a3 Qc7 20. Qf1 Red8 21. Red1 Be7 22. Bh6 Nf8 23. Rxd8 Bxd8 24. Ng5 {½-½ Vogel,H (1445)-Husemann,A (2113) LSS No Engine Cup 81 Final 2013}) 18... Qc7 {[%emt 0:00:11]} 19. Qd2 {[%emt 0:02:11]} Nc5 {[%emt 0:05:32]} 20. Bg5 {[%emt 0:06:10]} Rad8 {[%emt 0:11:41]} 21. Qe3 {[%emt 0:00:55]} Be7 {[%emt 0:00:25]} 22. Bh6 {[%emt 0:03:47]} Ne6 {[%emt 0:05:03]} 23. b4 {[%emt 0:02:48] Counterplay Black} cxb3 {[%emt 0:11:37]} 24. Bxb3 {[%emt 0:00:55]} Bc5 {[%emt 0:00:38]} (24... Rxd1 $15 {deserves consideration.} 25. Rxd1 Nc5) 25. Qe2 $11 {[%emt 0:05:25]} Rxd1 {[%emt 0:13:28]} 26. Rxd1 {[%emt 0:00:32]} Bf8 {[%emt 0:00:26]} 27. Bxf8 {[%emt 0:00:55]} Kxf8 {[%emt 0:00:20]} 28. Qe3 {[%emt 0:02:28]} ({Better is} 28. c4 $1 $11) 28... Kg7 $15 {[%emt 0:00:49]} 29. Bxe6 {[%emt 0:08:28]} Rxe6 {[%emt 0:00:37][%cal Be8e6,Be6c6,Bc6c4,Bc4a4][%mdl 32]} 30. Nh4 {[%emt 0:00:28][%cal Oh4f5]} Ng8 {[%emt 0:03:25]} 31. Qg5 {[%emt 0:13:08]} (31. Nhf5+ $15 Kf8 (31... gxf5 32. exf5 Rf6 33. Qg5+ Kf8 34. Nh5 $14) 32. Nh6 (32. Qg5 $2 f6 $19)) 31... h6 $1 $17 {[%emt 0:10:09]} 32. Qe3 {[%emt 0:07:40]} Rc6 {[%emt 0:01:38]} 33. Rd3 {[%emt 0:02:56]} Bc8 {[%emt 0:03:09]} 34. Qd2 {[%emt 0:04:36]} Be6 {[%emt 0:00:51]} 35. Ne2 {[%emt 0:04:03]} Nf6 {[%emt 0:01:12]} 36. Ng3 {[%emt 0:01:50]} Rc4 {[%emt 0:05:45]} 37. Qe3 {[%emt 0:05:45]} Ra4 {[%emt 0:00:51]} 38. Rd2 {[%emt 0:01:27]} Ra3 {[%emt 0:00:42]} (38... Bxa2 $2 39. Nhf5+ Kg8 (39... gxf5 40. Nxf5+ Kg8 41. Qg3+) 40. Qxh6 $18) (38... Rxa2 39. Rxa2 Bxa2 40. Ngf5+ gxf5 41. Nxf5+ Kg8 42. Qxh6 $11 (42. Qg3+ Kf8 $16)) 39. Rc2 {[%emt 0:02:42]} Qc4 $2 {[%emt 0:00:38]} (39... Bxa2 40. Ngf5+ Kg8 (40... gxf5 $2 41. Nxf5+ Kg8 42. Qg3+ Kf8 43. Qg7+ Ke8 44. Rd2 $18) 41. Qxh6 $18 (41. Nxh6+ Kh8 $11)) (39... Rxa2 40. Rxa2 Bxa2 41. Ngf5+ gxf5 42. Nxf5+ Kg8 43. Qg3+ (43. Qxh6 Ne8 $11) 43... Kf8 44. Qg7+ (44. Nxh6 $2 Be6 $19) 44... Ke8 45. Qh8+ (45. Qxf6 Be6 $11) 45... Kd7 46. Qxf6 $16) (39... a5 $19 {[%cal Oa5a4] aiming for ...a4!.} 40. Kh2 a4 (40... Bxa2 41. Ngf5+ Kg8 42. Qxh6 $18) (40... Rxa2 41. Rxa2 Bxa2 42. Ngf5+ Kg8 43. Qxh6 $15)) 40. f4 $2 {[%emt 0:01:17][%mdl 8192]} (40. Nhf5+ $1 $11 {and White has nothing to worry.} gxf5 41. exf5) 40... exf4 $19 {[%emt 0:02:54]} ({Don't take} 40... Rxa2 41. Rxa2 exf4 (41... Qxa2 42. f5 $15) 42. Qxf4 Qxa2 43. Kh2 $19) 41. Qxf4 {[%emt 0:00:08]} Rxa2 {[%emt 0:01:16]} 42. Rxa2 {[%emt 0:03:16]} Qxa2 {[%emt 0:00:11]} 43. Qe5 {[%emt 0:00:06]} Qa1+ {[%emt 0:01:36]} 44. Kh2 {[%emt 0:00:02][%cal Oh4f5]} b4 {[%emt 0:00:19]} 45. Nhf5+ $2 {[%emt 0:00:13]} (45. Ne2 Bc4 46. Ng3 Qxc3 (46... bxc3 47. Nhf5+ gxf5 48. Nh5+ Kf8 49. Qd6+ Kg8 50. Nxf6+ Kg7 51. Nh5+ Kh7 52. Qf6) 47. Qa5) 45... Bxf5 {[%emt 0:00:28]} (45... gxf5 46. Nh5+ Kg6 47. exf5+ (47. Nxf6 $2 Qxc3 48. exf5+ Bxf5 $19) (47. Qxf6+ Kxh5 48. exf5 Qa2 $18) 47... Kxh5 48. Qxf6 $18) 46. exf5 {[%emt 0:00:29] [#] Threatens to win with Ne4.} Qxc3 {[%emt 0:00:35][%mdl 4096] Endgame KQN-KQN. Black is two pawns up.} (46... bxc3 $2 {is the wrong capture.} 47. Ne4 gxf5 48. Qxf6+ (48. Nxf6 Qa3 $18) 48... Kg8 49. Qd8+ (49. Qxc3 Qxc3 50. Nxc3 f4 $18) (49. Qxf5 c2 $18) (49. Nxc3 a5 $18) 49... Kh7 50. Nf6+ Kg6 51. Nd5 $18) 47. Qe7 {[%emt 0:01:56]} g5 {[%emt 0:01:38]} 48. Ne2 {[%emt 0:00:27]} Qc4 {[%emt 0:00:36]} 49. Qe5 {[%emt 0:00:18]} Qe4 {[%emt 0:01:19]} 50. Qb2 {[%emt 0:00:11]} a5 {[%emt 0:00:20][%cal Oa5a4] [#]} (50... Qxf5 51. Qxb4 Qe5+ 52. Ng3) 51. Kh1 {[%emt 0:00:06]} a4 {[%emt 0:00:50]} 52. Ng3 {[%emt 0:00:09]} Qe1+ {[%emt 0:00:18]} 53. Kh2 {[%emt 0:00:08]} Qc3 {[%emt 0:00:03]} 54. Qf2 {[%emt 0:01:47]} b3 {[%emt 0:00:35] Black mates.} 55. Qb6 {[%emt 0:00:27]} Qe5 {[%emt 0:00:27]} 56. Qb4 {[%emt 0:00:34]} b2 {[%emt 0:00:39]} 57. Kg1 {[%emt 0:00:03]} Qxg3 {[%emt 0:00:23]} 58. Qxb2 {[%emt 0:00:06]} Qb3 {[%emt 0:00:07] Weighted Error Value: White=0.57/Black=0.13 (very precise)   Loses game:     	White=1     	---        Missed win:     	---       	Black=1      Mistake:       	White=3     	Black=1      Inaccurate:     	White=2     	Black=1      OK:         	White=8     	Black=17     Best:        	White=1     	Black=2} 0-1

[Event "25th Nepal Championship 2025"]
[Site "Hetauda"]
[Date "2025.01.29"]
[Round "6.4"]
[White "Bhandari, Kshitiz"]
[Black "Rajbhandari, Rijendra"]
[Result "1/2-1/2"]
[Annotator "TA"]
[ECO "C42"]
[WhiteElo "2070"]
[BlackElo "2016"]
[PlyCount "57"]
[EventDate "2025.01.24"]
[EventType "tourn"]
[EventCountry "NEP"]
[SourceTitle "playchess.com"]
[Source "ChessBase"]
[SourceQuality "1"]
[TimeControl "5400+30"]

{[%evp 12,57,63,8,34,-1,8,0,16,-7,-11,-13,0,0,0,0,0,-43,-27,-56,-29,-107,-110,-126,-86,-154,-113,-105,-62,-51,-62,-81,-38,-70,0,-43,37,8,75,-39,300,0,0,0,983,464,485,-581]} 1. e4 {[%emt 0:00:01]} e5 {[%emt 0:00:22]} 2. Nf3 {[%emt 0:00:07]} Nf6 {[%emt 0:00:33]} 3. Nxe5 {[%emt 0:00:10]} d6 {[%emt 0:00:07]} 4. Nf3 {[%emt 0:00:06]} Nxe4 {[%emt 0:00:03]} 5. d4 {[%emt 0:00:08]} d5 {[%emt 0:00:09]} 6. Bd3 {[%emt 0:00:07]} Nc6 {[%emt 0:00:17]} 7. c3 {[%emt 0:14:14]} ({Better is} 7. O-O $14) 7... Be7 {[%emt 0:00:13] C42: Petroff Defence: 3 Nxe5 and unusual White 3rd moves.} 8. Bf4 {[%emt 0:00:11]} O-O {[%emt 0:03:10]} 9. O-O {[%emt 0:01:50]} Bg4 {[%emt 0:03:24] The position is equal.} 10. Re1 {[%emt 0:03:01]} f5 {[%emt 0:00:21]} 11. Be2 {[%emt 0:16:54]} Bd6 {[%emt 0:09:49]} 12. Bxd6 {[%emt 0:00:31]} Qxd6 {[%emt 0:00:09]} 13. Nbd2 {[%emt 0:04:25]} Rae8 {[%emt 0:00:33]} 14. Nb3 $146 {[%emt 0:03:06]} (14. Nf1 Re6 15. N3d2 Bxe2 16. Qxe2 Rg6 17. f3 Ng5 18. Kh1 Ne6 19. g3 f4 20. g4 h5 21. gxh5 {0-1 Iyti,B (2303)-Eren,A (2064) Istanbul op 2017 (9)}) 14... Re6 {[%emt 0:18:34]} 15. Nbd2 {[%emt 0:22:14]} Rfe8 {[%emt 0:04:27]} 16. c4 {[%emt 0:06:39]} (16. Nxe4 $11 fxe4 (16... dxe4 $2 17. Ng5 $18) 17. Nh4 Bxe2 18. Qxe2) 16... Rh6 $17 {[%emt 0:23:35]} 17. g3 {[%emt 0:09:32]} Kf8 {[%emt 0:16:42]} 18. Rc1 {[%emt 0:05:06]} (18. cxd5 $142 Qxd5 19. Qb3) 18... Nxd2 {[%emt 0:05:17]} 19. Qxd2 {[%emt 0:00:23][%cal Of3e5]} dxc4 {[%emt 0:00:28] and ...Bxf3 would now be decisive} 20. d5 {[%emt 0:04:39]} (20. Rxc4 $2 Rhe6 21. Qd3 Bxf3 22. Qxf3 Nxd4 23. Rxd4 Qxd4 $19) 20... Bxf3 {[%emt 0:01:48]} 21. Bxf3 {[%emt 0:00:01]} Ne5 $1 {[%emt 0:00:15]} 22. Bg2 {[%emt 0:01:19]} b5 {[%emt 0:01:34]} ({Black should try} 22... Rhe6 $1 $15) 23. b3 {[%emt 0:00:43]} Rd8 {[%emt 0:01:01]} (23... Nd3 24. Rxe8+ Kxe8 25. Rc2 $16) (23... Rhe6 $15) 24. bxc4 {[%emt 0:01:41]} bxc4 {[%emt 0:00:25]} (24... Nxc4 $11 {remains equal.} 25. Qg5 Qf6) 25. Rb1 {[%emt 0:01:04]} (25. Re2 $16) 25... c6 $2 {[%emt 0:00:28][%mdl 8192] [#]} (25... Nd3 $1 $15 {keeps the upper hand.} 26. Re2 Qc5) 26. Qc3 $2 {[%emt 0:01:21]} (26. Qa5 $1 $18 {[%cal Oe1e5] Hoping for Rxe5!.} Nd3 (26... cxd5 $2 27. Rxe5 Qxe5 28. Qxd8+ Qe8 29. Qxd5 $18) 27. dxc6 Nxe1 28. c7 (28. Rxe1 Rf6 $16)) 26... Nd3 $11 {[%emt 0:04:09]} 27. Rb7 {[%emt 0:04:27][%csl Gb7][%cal Rc3g7] Dancing on a razor blade.} Rg6 {[%emt 0:06:07][%mdl 8192]} (27... Qf6 $11 28. Qa3+ c5) 28. Ree7 {[%emt 0:00:30]} (28. Re6 $142) 28... cxd5 {[%emt 0:00:30] [#]} 29. Re1 $4 {[%emt 0:00:30][%mdl 40960] Weighted Error Value: White=0.60/Black=0.62 An unexpected result.  Loses game:     	---       	Black=2      Missed win:     	White=1     	---        Mistake:       	White=4     	Black=3      Inaccurate:     	White=6     	Black=3      OK:         	White=6     	Black=6      Strong:       	---       	Black=1} 1/2-1/2

[Event "25th Nepal Championship 2025"]
[Site "Hetauda"]
[Date "2025.01.29"]
[Round "6.5"]
[White "Subedi, Rajan"]
[Black "Tandukar, Nabin"]
[Result "1-0"]
[Annotator "TA"]
[ECO "A45"]
[WhiteElo "1982"]
[BlackElo "1920"]
[PlyCount "71"]
[EventDate "2025.01.24"]
[EventType "tourn"]
[EventCountry "NEP"]
[SourceTitle "playchess.com"]
[Source "ChessBase"]
[SourceQuality "1"]
[TimeControl "5400+30"]

{[%evp 9,71,79,81,51,95,54,69,76,66,68,77,37,40,42,49,30,45,35,91,65,113,108,104,76,130,130,168,168,168,175,165,164,167,168,175,164,501,515,580,598,566,577,570,549,537,545,550,550,530,476,462,431,431,428,418,424,734,735,1129,1229,1094,1160,29973,29972]} 1. d4 {[%emt 0:00:06]} Nf6 {[%emt 0:00:10]} 2. Nc3 {[%emt 0:00:08]} g6 {[%emt 0:00:21]} 3. Bf4 {[%emt 0:01:38]} Bg7 {[%emt 0:00:08]} 4. Qd2 {[%emt 0:00:27]} h6 {[%emt 0:00:14]} 5. e4 {[%emt 0:02:52]} d6 {[%emt 0:00:03][%cal Bd7d6,Bd6e5][%mdl 32]} 6. f3 {[%emt 0:00:33] A45: Trompowsky Attack.} Nbd7 {[%emt 0:00:11]} 7. Bc4 {[%emt 0:00:33]} e5 {[%emt 0:00:37]} 8. dxe5 $146 {[%emt 0:01:44] White is slightly better.} (8. Be3 exd4 9. Bxd4 Qe7 10. Nd5 Qd8 11. Qc3 c6 12. Nf4 c5 13. Bxf7+ Kxf7 14. Qc4+ {1-0 Arun,S (2055)-Sanchez,R (1966) Titled Tuesday intern op 13th Jun Late blitz 2023 (3)}) 8... dxe5 {[%emt 0:01:18]} 9. Be3 {[%emt 0:00:18]} Qe7 {[%emt 0:00:25]} 10. Nge2 {[%emt 0:00:40] White is much more active.} Nb6 {[%emt 0:01:11]} 11. Bb3 {[%emt 0:01:49]} Be6 {[%emt 0:00:13]} 12. Nd5 {[%emt 0:00:33]} Bxd5 {[%emt 0:00:29]} 13. exd5 {[%emt 0:00:11]} Rd8 {[%emt 0:02:25]} ({Black should try} 13... O-O-O $14) 14. c4 $16 {[%emt 0:01:15]} Nfd7 {[%emt 0:00:56]} (14... c6 $14) 15. O-O-O {[%emt 0:01:55]} Nc5 {[%emt 0:00:13]} 16. Nc3 {[%emt 0:01:47]} f5 {[%emt 0:01:47]} (16... Nxb3+ $142 17. axb3 c6) 17. Rhe1 {[%emt 0:00:28]} a5 {[%emt 0:02:20][%cal Ba7a5,Ba5a4][%mdl 32]} 18. Nb5 {[%emt 0:01:54] [#] And now d6 would win.} a4 {[%emt 0:03:19]} 19. d6 {[%emt 0:05:40]} cxd6 {[%emt 0:28:32]} 20. Nxd6+ {[%emt 0:02:04] White has a queen side majority} Rxd6 {[%emt 0:04:16]} 21. Qxd6 {[%emt 0:00:08] White attacks} Qxd6 {[%emt 0:00:41]} 22. Rxd6 {[%emt 0:00:07]} Nbd7 {[%emt 0:51:41]} (22... axb3 {is a better chance.} 23. Bxc5 (23. Rxb6 $2 Nd3+ 24. Kd2 Nxe1 $17) 23... bxa2) 23. Bc2 $18 {[%emt 0:01:04]} ({Weaker is} 23. Rxg6 axb3 (23... Nxb3+ $2 {is the wrong capture.} 24. axb3 Bf8 25. bxa4 $18) (23... Nd3+ $2 24. Kd2 $18) 24. Rxg7 (24. Bxc5 bxa2 25. Kc2 Kf7 $14) 24... Nd3+ (24... bxa2 25. Kc2 $16) 25. Kd2 Nxe1 26. axb3 Nxg2 $16 (26... f4 27. Bf2 $16)) 23... O-O {[%emt 0:00:00]} 24. Red1 {[%emt 0:00:59]} Rf7 {[%emt 0:00:00]} 25. Rxg6 {[%emt 0:01:01]} f4 {[%emt 0:00:00]} 26. Bxc5 {[%emt 0:00:14]} Nxc5 {[%emt 0:00:00]} 27. Rd8+ {[%emt 0:00:07]} Rf8 {[%emt 0:00:00]} 28. Rxf8+ {[%emt 0:00:26]} Kxf8 {[%emt 0:00:00][%mdl 4096] Endgame KRB-KBN} 29. Rd6 {[%emt 0:00:08]} Ke7 {[%emt 0:00:00]} 30. Rd5 {[%emt 0:00:10]} b6 {[%emt 0:00:00]} 31. b4 {[%emt 0:00:25]} axb3 {[%emt 0:00:00]} 32. axb3 {[%emt 0:00:15][%cal Ba2b3,Bb3b4][%mdl 32]} Ke6 {[%emt 0:00:00]} (32... e4 $142 33. fxe4 (33. Bxe4 Nxb3+ 34. Kd1 Na5 $18) 33... Ne6) 33. b4 {[%emt 0:00:12]} Nd7 {[%emt 0:00:00] [#]} 34. Bf5+ $1 {[%emt 0:00:13][%mdl 512]} Kxf5 {[%emt 0:00:00]} 35. Rxd7 {[%emt 0:00:05]} Bf8 {[%emt 0:00:00]} 36. Rf7+ {[%emt 0:00:08] Weighted Error Value: White=0.09 (flawless) /Black=0.78  Mistake:       	---       	Black=5      Inaccurate:     	White=2     	Black=2      OK:         	White=11    	Black=11     Best:        	White=3     	Black=1} 1-0